bitfinex-derivatives/quotes_BTCF0:USTF0_20240902
["timestamp","ask_amount","ask_price","bid_price","bid_amount"]
[1725311130966,1.34252,59227.0,59226.0,0.0008]
[1725311131261,1.34252,59227.0,59221.0,0.00025326]
[1725311131262,0.6568,59227.0,59221.0,5.326e-05]
[1725311131459,0.6008,59222.0,59221.0,5.326e-05]
[1725311131671,0.668345,59222.0,59221.0,5.326e-05]
[1725311133477,0.307545,59222.0,59221.0,5.326e-05]
[1725311134072,0.312545,59222.0,59221.0,5.326e-05]
[1725311134270,0.245,59222.0,59221.0,5.326e-05]
[1725311134572,0.245,59222.0,59221.0,0.36085326]
[1725311134966,0.24,59222.0,59221.0,0.36085326]
[1725311135162,0.243,59222.0,59221.0,0.36085326]
[1725311136567,0.24,59222.0,59221.0,0.36085326]
[1725311136778,0.24,59222.0,59221.0,0.36285326]
[1725311137275,0.24,59222.0,59221.0,0.36085326]
[1725311137276,0.355,59222.0,59221.0,0.36085326]
[1725311137472,0.005,59222.0,59221.0,0.36085326]
[1725311137779,0.067537,59230.0,59221.0,0.36085326]
[1725311138072,0.067537,59230.0,59227.0,0.3608]
[1725311138275,0.077537,59230.0,59229.0,0.0008]
[1725311138473,0.01,59230.0,59229.0,0.0008]
[1725311138669,0.00025326,59232.0,59229.0,0.0008]
[1725311138863,0.19778726,59232.0,59231.0,0.0008]
[1725311139068,0.13025326,59232.0,59231.0,0.0008]
[1725311139980,0.19778726,59232.0,59231.0,0.0008]
[1725311140677,0.19978726,59232.0,59231.0,0.0008]
[1725311140873,0.13225326,59232.0,59231.0,0.0008]
[1725311141073,0.13225326,59232.0,59228.0,0.05398258]
[1725311141273,0.13825326,59232.0,59231.0,0.068535]
[1725311141871,0.13825326,59232.0,59231.0,0.067535]
[1725311141872,0.13025326,59232.0,59231.0,0.067535]
[1725311142175,0.00025326,59232.0,59231.0,0.067535]
[1725311143371,0.00025326,59232.0,59231.0,0.068535]
[1725311143971,0.00025326,59232.0,59231.0,0.067535]
[1725311144173,0.00025326,59232.0,59231.0,0.071535]
[1725311144573,0.00025326,59232.0,59231.0,0.067535]
[1725311144773,0.00025326,59232.0,59231.0,0.068535]
[1725311145377,0.24,59233.0,59231.0,0.068535]
[1725311145685,0.36,59233.0,59231.0,0.068535]
[1725311145876,0.36,59233.0,59232.0,0.0008]
[1725311146077,0.3608,59248.0,59232.0,0.74728]
[1725311146381,0.00025326,59242.0,59239.0,0.6016]
[1725311146685,0.00025326,59242.0,59241.0,0.068324]
[1725311147082,0.00025326,59242.0,59241.0,0.574724]
[1725311147579,0.00025326,59242.0,59241.0,0.0008]
[1725311147783,0.06777626,59242.0,59241.0,0.0008]
[1725311148371,0.73609926,59242.0,59241.0,0.0008]
[1725311148681,1.28537626,59242.0,59241.0,0.0008]
[1725311148874,0.77897626,59242.0,59241.0,0.0008]
[1725311149171,0.11065326,59242.0,59241.0,0.068324]
[1725311149380,0.00165326,59242.0,59241.0,0.079324]
[1725311149686,0.00165326,59242.0,59241.0,0.0118]
[1725311149977,0.06917626,59242.0,59241.0,0.0118]
[1725311150278,0.007,59242.0,59241.0,0.0018]
[1725311150679,0.074523,59242.0,59241.0,0.0018]
[1725311153381,0.074523,59242.0,59241.0,0.3626]
[1725311153778,0.074523,59242.0,59241.0,0.0018]
[1725311154681,0.184523,59242.0,59241.0,0.0018]
[1725311155481,0.184523,59242.0,59235.0,0.36105326]
[1725311155482,0.135058,59236.0,59235.0,0.00025326]
[1725311155685,0.845858,59236.0,59235.0,0.00025326]
[1725311155981,1.952298,59236.0,59235.0,0.00025326]
[1725311156287,0.067542,59225.0,59223.0,0.3608]
[1725311156589,0.067543,59224.0,59223.0,0.3608]
[1725311158384,0.307543,59224.0,59223.0,0.3608]
[1725311158688,0.067549,59219.0,59218.0,0.00025326]
[1725311158885,0.177549,59219.0,59218.0,0.00025326]
[1725311159090,0.176949,59219.0,59218.0,0.00025326]
[1725311159890,0.1104,59219.0,59218.0,0.12893942]
[1725311160087,0.06815241,59219.0,59218.0,0.12893942]
[1725311160297,0.06815241,59219.0,59218.0,0.12993942]
[1725311160587,0.00900607,59219.0,59218.0,0.12993942]
[1725311160780,0.07655507,59219.0,59218.0,0.12993942]
[1725311161789,0.00900607,59219.0,59218.0,0.12993942]
[1725311161980,0.0004,59219.0,59218.0,0.19748942]
[1725311162181,0.0004,59219.0,59218.0,0.35411019]
[1725311162596,0.0004,59219.0,59218.0,0.28656019]
[1725311162787,0.1204,59219.0,59218.0,0.28656019]
[1725311162981,0.1204,59219.0,59218.0,0.12993942]
[1725311163191,0.03590808,59219.0,59218.0,0.28656706]
[1725311163392,0.10345708,59219.0,59218.0,0.12993942]
[1725311163594,0.10345708,59219.0,59218.0,0.28656962]
[1725311163792,0.10345708,59219.0,59218.0,0.12993942]
[1725311163996,1.27760608,59219.0,59218.0,0.21231604]
[1725311164195,1.27760608,59219.0,59218.0,0.00125326]
[1725311164893,1.14250808,59219.0,59218.0,0.0659086]
[1725311165096,0.06755,59218.0,59216.0,0.0659086]
[1725311165293,0.06755,59218.0,59215.0,0.0659086]
[1725311165294,0.067552,59216.0,59215.0,0.0659086]
[1725311165495,0.505104,59216.0,59215.0,0.0659086]
[1725311165690,1.678696,59216.0,59215.0,5.3e-07]
[1725311165893,0.135116,59211.0,59210.0,0.06596744]
[1725311166195,0.135116,59211.0,59206.0,0.08237662]
[1725311166196,1.21788,59211.0,59206.0,0.06591725]
[1725311166409,0.0004,59207.0,59204.0,0.08237662]
[1725311166597,0.24,59205.0,59204.0,0.08237662]
[1725311166789,0.34,59205.0,59204.0,0.08237662]
[1725311166989,0.34,59205.0,59195.0,0.067576]
[1725311166990,0.339,59205.0,59195.0,0.067576]
[1725311167196,0.0004,59196.0,59194.0,0.04939278]
[1725311167396,0.0004,59196.0,59195.0,0.067576]
[1725311167604,0.00025326,59206.0,59205.0,0.067565]
[1725311167787,0.00025326,59206.0,59205.0,0.47810951]
[1725311168001,0.0004,59217.0,59206.0,0.50672]
[1725311168303,0.0004,59217.0,59215.0,0.0004]
[1725311168709,0.254,59216.0,59215.0,0.0004]
[1725311168905,0.014,59216.0,59215.0,0.0004]
[1725311169196,0.014,59216.0,59215.0,0.067953]
[1725311169604,0.3608,59219.0,59215.0,0.067953]
[1725311169812,0.3708,59219.0,59218.0,0.0004]
[1725311170409,0.438349,59219.0,59218.0,0.0004]
[1725311172309,1.547949,59219.0,59218.0,0.0004]
[1725311172524,1.615498,59219.0,59218.0,0.0004]
[1725311172819,0.508898,59219.0,59218.0,0.0004]
[1725311173121,1.551949,59219.0,59218.0,0.0014]
[1725311173323,0.445349,59219.0,59218.0,0.0014]
[1725311173622,1.558949,59219.0,59218.0,0.0014]
[1725311173920,0.452349,59219.0,59218.0,0.0014]
[1725311174228,1.558949,59219.0,59218.0,0.0014]
[1725311174522,0.452349,59219.0,59218.0,0.0014]
[1725311174720,1.558949,59219.0,59218.0,0.0014]
[1725311175118,1.626498,59219.0,59218.0,0.0014]
[1725311175316,0.067554,59214.0,59213.0,0.00025326]
[1725311175514,1.941948,59214.0,59213.0,0.00025326]
[1725311175910,1.80784,59214.0,59199.0,0.04932363]
[1725311176112,1.80784,59214.0,59193.0,0.3608]
[1725311176113,0.067577,59194.0,59193.0,0.00232]
[1725311176314,0.067583,59189.0,59186.0,0.067586]
[1725311176618,0.0004,59187.0,59186.0,0.067586]
[1725311176820,0.306983,59189.0,59186.0,0.067586]
[1725311177024,0.067584,59188.0,59183.0,0.11691263]
[1725311177320,0.067584,59188.0,59184.0,0.067588]
[1725311177827,0.24,59189.0,59181.0,0.3608]
[1725311178120,0.24,59183.0,59181.0,0.3608]
[1725311178310,0.30759,59183.0,59181.0,0.3608]
[1725311178515,0.067591,59182.0,59181.0,0.3608]
[1725311178715,0.067595,59179.0,59174.0,0.3608]
[1725311179123,0.063595,59179.0,59174.0,0.3608]
[1725311179421,0.001,59189.0,59174.0,0.3608]
[1725311179422,0.067599,59175.0,59174.0,0.3608]
[1725311179622,0.067604,59171.0,59165.0,0.3608]
[1725311179836,0.303604,59171.0,59165.0,0.3608]
[1725311180017,0.3608,59175.0,59165.0,0.3608]
[1725311180018,0.24,59166.0,59165.0,0.3608]
[1725311180418,0.235,59166.0,59165.0,0.3608]
[1725311182313,0.235,59166.0,59159.0,0.3608]
[1725311182522,0.24,59160.0,59159.0,0.3608]
[1725311183217,0.2404,59160.0,59159.0,0.3608]
[1725311183415,0.2404,59160.0,59153.0,0.3608]
[1725311183615,0.2404,59154.0,59153.0,0.3608]
[1725311184630,0.18964937,59154.0,59153.0,0.3608]
[1725311185726,0.19164937,59154.0,59153.0,0.3608]
[1725311186423,0.19064937,59154.0,59153.0,0.3608]
[1725311186629,0.19064937,59154.0,59149.0,0.067628]
[1725311186827,0.0004,59150.0,59149.0,0.067628]
[1725311187326,0.19024937,59154.0,59149.0,0.067628]
[1725311187532,0.24,59150.0,59146.0,0.3608]
[1725311187830,0.24,59150.0,59147.0,0.06763]
[1725311188023,0.24,59150.0,59146.0,0.3608]
[1725311188527,0.281,59150.0,59146.0,0.3608]
[1725311189126,0.28,59150.0,59146.0,0.3608]
[1725311189431,0.3608,59147.0,59132.0,0.0039]
[1725311189628,0.3608,59147.0,59127.0,0.067654]
[1725311189629,0.24,59133.0,59127.0,0.067654]
[1725311189824,0.3608,59135.0,59131.0,0.067649]
[1725311189825,0.24,59132.0,59131.0,0.067649]
[1725311190042,0.24,59132.0,59121.0,0.3608]
[1725311190043,0.6008,59135.0,59121.0,0.3608]
[1725311190223,0.6008,59135.0,59132.0,0.067648]
[1725311190419,0.6008,59135.0,59134.0,0.067646]
[1725311190824,0.6008,59135.0,59134.0,1.174966]
[1725311190825,0.0004,59135.0,59134.0,1.174966]
[1725311191227,0.00025348,59136.0,59135.0,0.067645]
[1725311191429,0.00025348,59136.0,59135.0,0.574965]
[1725311191632,0.00025348,59136.0,59135.0,1.174965]
[1725311192224,0.00025348,59136.0,59135.0,1.22428863]
[1725311192425,0.00025348,59136.0,59135.0,0.574965]
[1725311192836,0.00025348,59136.0,59135.0,0.62401819]
[1725311193025,0.00025348,59136.0,59135.0,0.067645]
[1725311193227,0.00125348,59136.0,59135.0,0.067645]
[1725311193837,0.00125348,59136.0,59135.0,0.11670619]
[1725311194133,0.00125348,59136.0,59135.0,0.067645]
[1725311194335,0.00125348,59136.0,59135.0,0.574965]
[1725311195332,0.00025348,59136.0,59135.0,0.574965]
[1725311195529,0.00125348,59136.0,59135.0,0.574965]
[1725311196235,0.00125348,59136.0,59135.0,0.067645]
[1725311196438,0.00125348,59136.0,59135.0,0.13340984]
[1725311196627,0.00125348,59136.0,59135.0,0.067645]
[1725311197135,0.00125348,59136.0,59135.0,0.15002162]
[1725311197337,0.00125348,59136.0,59135.0,0.19649161]
[1725311197942,0.00025348,59136.0,59135.0,0.19649161]
[1725311198127,0.00125348,59136.0,59135.0,0.19649161]
[1725311199640,0.24,59136.0,59135.0,0.19649161]
[1725311199839,0.35,59136.0,59135.0,0.12884661]
[1725311200043,0.417644,59136.0,59132.0,0.08187043]
[1725311200249,0.067645,59135.0,59134.0,0.08187043]
[1725311200439,0.417645,59135.0,59134.0,0.08187043]
[1725311200646,0.417645,59135.0,59134.0,0.21073533]
[1725311200846,0.35,59135.0,59134.0,0.21073533]
[1725311201238,0.35,59135.0,59134.0,0.1288649]
[1725311202136,0.353,59135.0,59134.0,0.12886348]
[1725311202337,0.29377189,59135.0,59134.0,0.12886348]
[1725311202646,0.35841689,59135.0,59134.0,0.12886348]
[1725311203336,0.419645,59135.0,59134.0,0.12886348]
[1725311203841,1.526965,59135.0,59134.0,0.12886348]
[1725311204038,0.06765,59130.0,59129.0,0.00025348]
[1725311204240,0.54885,59130.0,59129.0,0.00025348]
[1725311205142,0.4812,59130.0,59129.0,0.00025348]
[1725311205356,0.4852,59130.0,59129.0,0.00025348]
[1725311205946,0.55285,59130.0,59129.0,0.00025348]
[1725311206442,0.55285,59130.0,59129.0,0.04970081]
[1725311206638,1.72786,59130.0,59129.0,0.04970081]
[1725311206845,1.66021,59130.0,59129.0,0.00025348]
[1725311207035,0.55285,59130.0,59129.0,0.00025348]
[1725311207843,0.55285,59130.0,59129.0,0.049737]
[1725311208146,0.55685,59130.0,59129.0,0.00025348]
[1725311209543,0.55685,59130.0,59129.0,0.06632141]
[1725311210148,0.55685,59130.0,59129.0,0.00025348]
[1725311210943,0.55685,59130.0,59129.0,0.06790548]
[1725311211149,0.19605,59130.0,59129.0,0.06790548]
[1725311212351,0.14527897,59130.0,59129.0,0.35364065]
[1725311212947,0.0084,59130.0,59129.0,1.46100065]
[1725311213145,0.0084,59130.0,59129.0,1.57673664]
[1725311213353,0.0084,59130.0,59129.0,1.64583031]
[1725311213546,0.0084,59130.0,59129.0,1.46100065]
[1725311213956,0.0084,59130.0,59129.0,1.57666547]
[1725311214251,0.0084,59130.0,59129.0,1.64583004]
[1725311214461,0.0084,59130.0,59129.0,0.35364065]
[1725311215356,0.307644,59136.0,59133.0,0.067647]
[1725311215561,0.407644,59136.0,59134.0,0.28573517]
[1725311215863,0.407644,59136.0,59135.0,0.28573517]
[1725311216456,0.407644,59136.0,59135.0,0.22810261]
[1725311216761,0.407644,59136.0,59135.0,0.22809994]
[1725311216958,0.407644,59136.0,59135.0,0.12887382]
[1725311217154,0.1,59136.0,59135.0,0.3533723]
[1725311217361,0.00025348,59140.0,59139.0,0.06764]
[1725311217670,0.00025348,59140.0,59139.0,0.3533673]
[1725311217959,0.00025348,59140.0,59139.0,0.2857273]
[1725311218156,0.17789248,59140.0,59139.0,0.12887382]
[1725311218663,0.17789248,59140.0,59139.0,0.22811077]
[1725311218862,0.17889248,59140.0,59139.0,0.23911077]
[1725311219266,0.11125348,59140.0,59139.0,0.29671247]
[1725311219468,0.11025348,59140.0,59139.0,0.35335247]
[1725311219654,0.11525348,59140.0,59139.0,0.35335247]
[1725311219973,0.0560302,59140.0,59139.0,0.35335247]
[1725311220148,0.005,59140.0,59139.0,0.35335247]
[1725311220852,0.005,59140.0,59139.0,0.29575842]
[1725311221061,0.197639,59140.0,59139.0,0.12887382]
[1725311221254,0.204639,59140.0,59139.0,0.12987382]
[1725311221658,0.318739,59140.0,59139.0,0.12987382]
[1725311221860,0.497478,59140.0,59139.0,0.12887382]
[1725311222071,0.13528,59139.0,59138.0,0.0827461]
[1725311222255,0.307641,59138.0,59134.0,0.0827461]
[1725311222455,0.307641,59138.0,59129.0,0.09949808]
[1725311222456,0.134292,59134.0,59133.0,0.0827461]
[1725311222664,0.36,59134.0,59129.0,0.00025348]
[1725311222962,0.66845,59130.0,59129.0,0.00025348]
[1725311223151,0.79845,59130.0,59129.0,0.06651213]
[1725311223354,0.79845,59130.0,59129.0,0.00025348]
[1725311223560,0.79845,59130.0,59129.0,0.06649917]
[1725311223762,1.97346,59130.0,59129.0,0.06649936]
[1725311223963,1.97346,59130.0,59127.0,0.06625468]
[1725311223964,1.83816,59130.0,59127.0,0.06625468]
[1725311224258,1.83816,59130.0,59113.0,0.0039]
[1725311224259,0.2404,59128.0,59119.0,0.08279726]
[1725311224467,0.13531,59126.0,59125.0,0.04968508]
[1725311224669,0.13531,59126.0,59124.0,0.04969018]
[1725311224670,0.134312,59125.0,59124.0,0.04969018]
[1725311224851,0.264712,59125.0,59124.0,0.04969018]
[1725311225167,0.067658,59123.0,59122.0,0.04969887]
[1725311225358,0.06766,59122.0,59121.0,0.04969887]
[1725311225551,0.17706,59122.0,59121.0,0.04969887]
[1725311225755,0.17666,59122.0,59121.0,0.04969887]
[1725311225958,0.17666,59122.0,59111.0,0.08279726]
[1725311225959,0.50744,59121.0,59111.0,0.08279726]
[1725311226165,0.067668,59115.0,59114.0,0.04968896]
[1725311226455,1.0716,59115.0,59113.0,0.04966931]
[1725311226654,0.06767,59113.0,59112.0,0.04966931]
[1725311226857,0.067673,59110.0,59108.0,0.06624798]
[1725311227061,0.0004,59109.0,59108.0,0.06624798]
[1725311227364,0.067673,59110.0,59107.0,0.067676]
[1725311227365,0.3608,59110.0,59107.0,0.067676]
[1725311227567,0.3608,59110.0,59109.0,0.0004]
[1725311229160,0.3618,59110.0,59109.0,0.0044]
[1725311229668,0.1263,59127.0,59109.0,0.0044]
[1725311229669,1e-08,59116.0,59115.0,0.067668]
[1725311229962,0.3608,59136.0,59115.0,0.067668]
[1725311229963,0.067639,59140.0,59116.0,0.575106]
[1725311230163,0.3608,59143.0,59138.0,0.0004]
[1725311230164,0.1204,59139.0,59138.0,0.0004]
[1725311231168,0.0004,59139.0,59138.0,0.0004]
[1725311231359,0.0144,59139.0,59138.0,0.0004]
[1725311231861,0.014,59139.0,59138.0,0.0004]
[1725311232372,0.134,59139.0,59138.0,0.0004]
[1725311232569,0.123,59139.0,59138.0,0.0004]
[1725311234460,0.003,59139.0,59138.0,0.0004]
[1725311236678,0.003,59139.0,59138.0,0.068041]
[1725311238574,0.003,59139.0,59138.0,0.308041]
[1725311238961,0.003,59139.0,59138.0,0.068041]
[1725311239159,0.003,59139.0,59138.0,0.0004]
[1725311239160,0.3638,59139.0,59138.0,0.0004]
[1725311239362,0.55144,59139.0,59138.0,0.0004]
[1725311240173,0.61908,59139.0,59138.0,0.0004]
[1725311240567,0.55144,59139.0,59138.0,0.0004]
[1725311242177,0.54844,59139.0,59138.0,0.0004]
[1725311242367,0.54844,59139.0,59138.0,0.0014]
[1725311242368,0.55744,59139.0,59138.0,0.0014]
[1725311242875,0.4898,59139.0,59138.0,0.0014]
[1725311243571,0.4898,59139.0,59138.0,0.069041]
[1725311244685,0.0002537,59144.0,59138.0,1.483962]
[1725311244976,1e-08,59144.0,59143.0,0.308036]
[1725311245174,1e-08,59144.0,59143.0,0.815276]
[1725311245470,1e-08,59144.0,59143.0,1.415276]
[1725311247373,0.00800001,59144.0,59143.0,1.415276]
[1725311248171,0.00700001,59144.0,59143.0,1.416276]
[1725311248779,0.00700001,59144.0,59143.0,0.816276]
[1725311250467,0.00700001,59144.0,59143.0,0.309036]
[1725311250678,0.00700001,59144.0,59143.0,0.069036]
[1725311250865,0.07463401,59144.0,59143.0,0.0014]
[1725311252173,0.07463401,59144.0,59124.0,0.3608]
[1725311252174,0.067646,59134.0,59124.0,0.3608]
[1725311252480,0.428446,59134.0,59127.0,0.067654]
[1725311252679,0.548846,59134.0,59127.0,0.067654]
[1725311252867,0.548846,59134.0,59125.0,0.24]
[1725311253378,0.4812,59134.0,59131.0,0.067649]
[1725311254081,0.0004,59134.0,59133.0,0.0679007]
[1725311254475,0.0004,59134.0,59133.0,0.0719007]
[1725311254975,0.088046,59134.0,59133.0,0.0042537]
[1725311255175,0.448846,59134.0,59133.0,0.0042537]
[1725311256680,0.067665,59117.0,59115.0,0.0039]
[1725311256872,0.0004,59134.0,59133.0,0.067647]
[1725311257071,0.3608,59147.0,59137.0,0.067642]
[1725311257072,0.067637,59143.0,59137.0,0.067642]
[1725311257287,0.3608,59147.0,59142.0,0.0004]
[1725311257478,0.3608,59147.0,59146.0,0.068032]
[1725311257672,0.0002537,59152.0,59141.0,0.0002537]
[1725311257981,0.0002537,59152.0,59149.0,0.0004]
[1725311258289,0.654928,59150.0,59149.0,0.0004]
[1725311258481,1.162128,59150.0,59149.0,0.0004]
[1725311258684,0.654928,59150.0,59149.0,0.0004]
[1725311259079,0.668928,59150.0,59149.0,0.0014]
[1725311263678,0.558928,59150.0,59149.0,0.0014]
[1725311265490,0.198128,59150.0,59149.0,0.0014]
[1725311265989,0.1305,59150.0,59149.0,0.0014]
[1725311266179,0.1305,59150.0,59149.0,0.069029]
[1725311266896,0.2405,59150.0,59149.0,0.0014]
[1725311267387,0.308128,59150.0,59149.0,0.0014]
[1725311270786,0.191628,59150.0,59149.0,0.0014]
[1725311271991,0.124,59150.0,59149.0,0.309029]
[1725311272195,0.01352,59151.0,59150.0,0.067628]
[1725311272386,0.01352,59151.0,59150.0,0.936028]
[1725311272694,0.01352,59151.0,59150.0,1.536028]
[1725311273985,0.01852,59151.0,59150.0,1.727028]
[1725311275190,0.01852,59151.0,59150.0,1.79886971]
[1725311275998,0.01852,59151.0,59150.0,1.84886971]
[1725311277005,0.01352,59151.0,59150.0,1.86086971]
[1725311277493,0.0137737,59152.0,59151.0,0.067626]
[1725311277703,0.1184,59176.0,59151.0,0.575186]
[1725311277999,0.067606,59169.0,59165.0,0.24]
[1725311278197,0.11,59169.0,59168.0,0.067607]
[1725311278501,0.17,59175.0,59170.0,0.067605]
[1725311278502,0.3608,59171.0,59170.0,0.067605]
[1725311278796,0.4908,59171.0,59170.0,0.308005]
[1725311279394,0.3608,59171.0,59170.0,0.308005]
[1725311280401,0.02911,59172.0,59171.0,0.067604]
[1725311280607,0.02911,59172.0,59171.0,1.003408]
[1725311280896,0.00025349,59176.0,59175.0,0.067599]
[1725311281106,0.00025349,59176.0,59175.0,0.814959]
[1725311281313,0.067576,59195.0,59176.0,0.50696]
[1725311281601,0.06758,59192.0,59184.0,0.3608]
[1725311281897,0.06758,59192.0,59188.0,0.24]
[1725311282100,0.1219,59197.0,59188.0,0.24]
[1725311282395,0.00025349,59198.0,59196.0,0.2404]
[1725311282600,0.00025349,59198.0,59197.0,0.0004]
[1725311282896,0.00025349,59198.0,59197.0,0.2404]
[1725311284590,0.00025349,59198.0,59197.0,0.2414]
[1725311285298,0.00025349,59198.0,59197.0,0.6022]
[1725311285891,0.06782649,59198.0,59197.0,0.2414]
[1725311286700,0.00025349,59198.0,59197.0,0.2414]
[1725311287403,0.00025349,59198.0,59197.0,1.415734]
[1725311287607,0.428355,59214.0,59198.0,0.50676]
[1725311287905,0.428355,59214.0,59213.0,0.2404]
[1725311289407,0.428355,59214.0,59213.0,0.0014]
[1725311290698,0.558355,59214.0,59213.0,0.0014]
[1725311291202,0.62591,59214.0,59213.0,0.0014]
[1725311291410,0.13512,59209.0,59190.0,0.24]
[1725311291599,0.3612,59196.0,59192.0,0.067579]
[1725311291796,0.548775,59196.0,59193.0,0.067578]
[1725311291996,0.067576,59195.0,59194.0,0.24]
[1725311292194,0.097576,59195.0,59194.0,0.24]
[1725311292393,0.097576,59195.0,59186.0,0.3608]
[1725311292394,0.067577,59194.0,59190.0,0.24]
[1725311292602,0.0004,59191.0,59190.0,0.24]
[1725311293309,0.0004,59191.0,59190.0,0.307582]
[1725311294203,0.065577,59194.0,59190.0,0.307582]
[1725311294204,0.063977,59194.0,59191.0,0.06758]
[1725311294401,0.073977,59194.0,59191.0,0.06758]
[1725311296610,0.01,59194.0,59193.0,0.067578]
[1725311298408,0.003,59194.0,59193.0,1.536178]
[1725311298809,0.00025349,59198.0,59197.0,0.067574]
[1725311299010,0.00025349,59198.0,59197.0,0.307974]
[1725311299220,0.00025349,59198.0,59197.0,1.414734]
[1725311299511,0.00025349,59198.0,59197.0,1.482308]
[1725311300419,0.1226,59213.0,59197.0,1.482308]
[1725311300420,0.1226,59213.0,59209.0,0.06756]
[1725311300609,0.1326,59213.0,59212.0,0.0004]
[1725311301221,0.01,59213.0,59212.0,0.307957]
[1725311301512,0.02702,59215.0,59214.0,0.067554]
[1725311301713,0.02702,59215.0,59214.0,0.067954]
[1725311303123,0.02702,59215.0,59214.0,0.068954]
[1725311303311,0.02702,59215.0,59214.0,1.175594]
[1725311304616,0.02702,59215.0,59214.0,0.068954]
[1725311305034,0.02702,59215.0,59214.0,1.175594]
[1725311305408,0.02702,59215.0,59214.0,1.243148]
[1725311305610,0.02702,59215.0,59214.0,0.575594]
[1725311305812,0.02702,59215.0,59214.0,1.175594]
[1725311306718,0.02702,59215.0,59214.0,1.188594]
[1725311308212,0.02702,59215.0,59214.0,0.588594]
[1725311308622,0.02702,59215.0,59214.0,1.174594]
[1725311308816,0.02702,59215.0,59214.0,1.181594]
[1725311309123,0.02702,59215.0,59214.0,0.581594]
[1725311309311,0.02702,59215.0,59214.0,0.582594]
[1725311309511,0.02702,59215.0,59214.0,0.64870441]
[1725311310428,0.00025349,59218.0,59217.0,0.067551]
[1725311310620,0.00025349,59218.0,59217.0,0.668751]
[1725311311225,0.00025349,59218.0,59217.0,0.73444786]
[1725311312019,0.00025349,59218.0,59217.0,0.68744786]
[1725311312215,0.00025349,59218.0,59217.0,0.621751]
[1725311312422,0.00025349,59218.0,59217.0,0.68745163]
[1725311312618,0.00025349,59218.0,59217.0,0.621751]
[1725311312816,0.00025349,59218.0,59217.0,0.68745126]
[1725311313325,0.00025349,59218.0,59217.0,0.621751]
[1725311314822,0.00025349,59218.0,59217.0,0.0034]
[1725311314823,1.36440349,59218.0,59217.0,0.0034]
[1725311315120,1.60490349,59218.0,59207.0,0.00025349]
[1725311315324,0.067961,59208.0,59207.0,0.00025349]
[1725311315526,0.187961,59208.0,59207.0,0.00025349]
[1725311316224,0.186961,59208.0,59207.0,0.00025349]
[1725311317427,1.293641,59208.0,59207.0,0.00025349]
[1725311317723,1.295641,59208.0,59207.0,0.00125349]
[1725311318024,1.41908,59208.0,59189.0,0.19]
[1725311318229,0.067582,59190.0,59187.0,0.00224]
[1725311318522,0.066582,59190.0,59185.0,0.257587]
[1725311318731,0.0004,59186.0,59185.0,0.257587]
[1725311318928,0.066582,59190.0,59185.0,0.257587]
[1725311319122,0.36145349,59191.0,59189.0,0.0004]
[1725311319326,0.42903449,59191.0,59190.0,0.0004]
[1725311319628,0.42903449,59191.0,59189.0,0.0004]
[1725311320213,0.42863449,59191.0,59189.0,0.0004]
[1725311321221,0.1257,59190.0,59189.0,0.0004]
[1725311322039,0.9657,59190.0,59189.0,0.0004]
[1725311322229,0.9657,59190.0,59180.0,0.00025349]
[1725311322230,1.0957,59190.0,59180.0,0.00025349]
[1725311322531,0.3608,59185.0,59180.0,0.00025349]
[1725311322720,0.4808,59185.0,59180.0,0.00025349]
[1725311322924,0.307592,59181.0,59165.0,0.067609]
[1725311323121,0.067608,59167.0,59163.0,0.24]
[1725311324024,0.059608,59167.0,59163.0,0.24]
[1725311324229,0.059608,59167.0,59161.0,0.067615]
[1725311324436,0.3608,59169.0,59163.0,0.06570026]
[1725311324625,0.3608,59169.0,59166.0,0.04928009]
[1725311325131,0.067609,59166.0,59165.0,0.04928009]
[1725311325339,0.067609,59166.0,59163.0,0.003]
[1725311325340,0.067612,59164.0,59163.0,0.003]
[1725311325530,0.067612,59164.0,59159.0,0.00025349]
[1725311325719,0.3608,59160.0,59159.0,0.04953358]
[1725311325917,0.3608,59167.0,59159.0,0.00025349]
[1725311326123,0.067615,59162.0,59159.0,0.04953358]
[1725311326329,0.067615,59161.0,59159.0,0.00025349]
[1725311327235,0.428415,59161.0,59159.0,0.00025349]
[1725311327438,0.067616,59160.0,59159.0,0.00025349]
[1725311327822,0.067616,59160.0,59159.0,0.00725349]
[1725311329034,0.068616,59160.0,59159.0,0.00725349]
[1725311330235,0.001,59160.0,59159.0,0.00725349]
[1725311330435,0.30259739,59161.0,59159.0,0.00725349]
[1725311330623,0.30259739,59161.0,59160.0,0.0004]
[1725311331223,0.30259739,59161.0,59160.0,0.068016]
[1725311331746,0.31711739,59161.0,59160.0,0.068016]
[1725311332140,0.31611739,59161.0,59160.0,0.068016]
[1725311332321,0.31711739,59161.0,59160.0,0.074016]
[1725311333427,0.31711739,59161.0,59160.0,0.0064]
[1725311333630,0.38473239,59161.0,59160.0,0.0064]
[1725311334836,0.38473239,59161.0,59160.0,0.074016]
[1725311335528,0.01452,59161.0,59160.0,0.074016]
[1725311338732,0.082135,59161.0,59160.0,0.074016]
[1725311341329,0.082135,59161.0,59160.0,0.0064]
[1725311341735,0.095655,59161.0,59160.0,0.0064]
[1725311343036,0.205655,59161.0,59160.0,0.0064]
[1725311343224,0.205655,59161.0,59160.0,0.074016]
[1725311343837,0.16336865,59161.0,59160.0,0.074016]
[1725311348526,0.12352,59161.0,59160.0,0.074016]
[1725311351641,0.44875,59161.0,59160.0,0.0064]
[1725311352147,0.514535,59161.0,59160.0,0.0064]
[1725311353841,0.526535,59161.0,59160.0,0.0014]
[1725311354545,0.59415,59161.0,59160.0,0.06710026]
[1725311354745,1.31575,59161.0,59160.0,0.06710026]
[1725311355337,1.31575,59161.0,59160.0,0.06763327]
[1725311355947,1.31575,59161.0,59160.0,0.0014]
[1725311359248,1.32927,59161.0,59160.0,0.0014]
[1725311360244,2.43635,59161.0,59160.0,0.0014]
[1725311360434,0.067623,59154.0,59152.0,0.08275209]